[Event "Titled Tuesday Blitz March 07 Late 2023"]
[White "Kozin, Yuri"]
[Black "Barash, Anton"]
[WhiteFideId "4129920"]
[BlackFideId "30935229"]
[WhiteElo "2487"]
[BlackElo "2312"]
[Result "0-1"]
[Round "04"]
[TimeControl "180+2"]
[Date "2023.03.07"]
[WhiteClock "0:00:14"]
[BlackClock "0:00:13"]

1. e4 {[%clk 0:02:56]}  e6 {[%clk 0:02:56]} 2. d3 {[%clk 0:02:55]}  d5 {[%clk 0:02:56]} 3. Nd2 {[%clk 0:02:54]}  c5 {[%clk 0:02:55]} 4. Ngf3 {[%clk 0:02:52]}  Nf6 {[%clk 0:02:50]} 5. g3 {[%clk 0:02:52]}  Be7 {[%clk 0:02:50]} 6. Bg2 {[%clk 0:02:49]}  O-O {[%clk 0:02:49]} 7. O-O {[%clk 0:02:49]}  a5 {[%clk 0:02:45]} 8. e5 {[%clk 0:02:49]}  Nfd7 {[%clk 0:02:45]} 9. a4 {[%clk 0:02:50]}  Nc6 {[%clk 0:02:40]} 10. Qe2 {[%clk 0:02:50]}  Qc7 {[%clk 0:02:39]} 11. Re1 {[%clk 0:02:49]}  Nd4 {[%clk 0:02:39]} 12. Qd1 {[%clk 0:02:44]}  Re8 {[%clk 0:02:24]} 13. Nxd4 {[%clk 0:02:39]}  cxd4 {[%clk 0:02:25]} 14. Nf3 {[%clk 0:02:40]}  Bc5 {[%clk 0:02:16]} 15. h4 {[%clk 0:02:38]}  Nf8 {[%clk 0:02:11]} 16. h5 {[%clk 0:02:37]}  Bd7 {[%clk 0:02:09]} 17. Bf4 {[%clk 0:02:35]}  b5 {[%clk 0:02:05]} 18. axb5 {[%clk 0:02:32]}  Reb8 {[%clk 0:02:04]} 19. h6 {[%clk 0:02:30]}  g6 {[%clk 0:02:04]} 20. Nh2 {[%clk 0:02:16]}  Bxb5 {[%clk 0:01:56]} 21. Ng4 {[%clk 0:02:15]}  Nd7 {[%clk 0:01:57]} 22. Qf3 {[%clk 0:02:09]}  Rb7 {[%clk 0:01:49]} 23. Bg5 {[%clk 0:01:53]}  Bf8 {[%clk 0:01:46]} 24. Nf6+ {[%clk 0:01:43]}  Nxf6 {[%clk 0:01:44]} 25. Qxf6 {[%clk 0:01:43]}  Qxc2 {[%clk 0:01:31]} 26. Bxd5 {[%clk 0:01:23]}  exd5 {[%clk 0:01:28]} 27. e6 {[%clk 0:01:24]}  Re8 {[%clk 0:01:16]} 28. Rac1 {[%clk 0:01:10]}  Qxd3 {[%clk 0:01:15]} 29. e7 {[%clk 0:00:38]}  Rbxe7 {[%clk 0:01:05]} 30. Rxe7 {[%clk 0:00:26]}  Rxe7 {[%clk 0:00:33]} 31. Rc8 {[%clk 0:00:08]}  Qf1+ {[%clk 0:00:31]} 32. Kh2 {[%clk 0:00:08]}  Qxf2+ {[%clk 0:00:10]} 33. Qxf2 {[%clk 0:00:07]}  Re2 {[%clk 0:00:11]} 34. Rc2 {[%clk 0:00:04]}  Rxf2+ {[%clk 0:00:10]} 35. Rxf2 {[%clk 0:00:05]}  f5 {[%clk 0:00:10]} 36. Rd2 {[%clk 0:00:04]}  d3 {[%clk 0:00:11]} 37. Bf4 {[%clk 0:00:04]}  Bb4 {[%clk 0:00:11]} 38. Rd1 {[%clk 0:00:02]}  Ba4 {[%clk 0:00:10]} 39. Rc1 {[%clk 0:00:02]}  d2 {[%clk 0:00:09]} 40. Rc8+ {[%clk 0:00:02]}  Kf7 {[%clk 0:00:10]} 41. Rc7+ {[%clk 0:00:03]}  Ke6 {[%clk 0:00:10]} 42. Bxd2 {[%clk 0:00:03]}  Bxd2 {[%clk 0:00:10]} 43. Rxh7 {[%clk 0:00:04]}  Bg5 {[%clk 0:00:08]} 44. Ra7 {[%clk 0:00:01]}  Bxh6 {[%clk 0:00:06]} 45. Ra6+ {[%clk 0:00:01]}  Ke5 {[%clk 0:00:07]} 46. Rxa5 {[%clk 0:00:02]}  Bc2 {[%clk 0:00:05]} 47. Ra6 {[%clk 0:00:03]}  d4 {[%clk 0:00:04]} 48. Rxg6 {[%clk 0:00:03]}  Be3 {[%clk 0:00:04]} 49. Rg8 {[%clk 0:00:03]}  d3 {[%clk 0:00:05]} 50. Re8+ {[%clk 0:00:03]}  Kd4 {[%clk 0:00:06]} 51. Rd8+ {[%clk 0:00:04]}  Kc4 {[%clk 0:00:05]} 52. Rc8+ {[%clk 0:00:04]}  Kb3 {[%clk 0:00:06]} 53. Rb8+ {[%clk 0:00:04]}  Ka2 {[%clk 0:00:06]} 54. b4 {[%clk 0:00:04]}  d2 {[%clk 0:00:07]} 55. Rd8 {[%clk 0:00:05]}  d1=Q {[%clk 0:00:07]} 56. Rxd1 {[%clk 0:00:05]}  Bxd1 {[%clk 0:00:08]} 57. Kg2 {[%clk 0:00:06]}  Ba4 {[%clk 0:00:08]} 58. Kf3 {[%clk 0:00:06]}  Bd2 {[%clk 0:00:07]} 59. g4 {[%clk 0:00:07]}  Bd1+ {[%clk 0:00:05]} 60. Kg3 {[%clk 0:00:06]}  Bxg4 {[%clk 0:00:05]} 61. b5 {[%clk 0:00:07]}  Ba5 {[%clk 0:00:05]} 62. Kf4 {[%clk 0:00:07]}  Kb3 {[%clk 0:00:06]} 63. Ke5 {[%clk 0:00:07]}  Kc4 {[%clk 0:00:07]} 64. Kf4 {[%clk 0:00:08]}  Kxb5 {[%clk 0:00:07]} 65. Kg3 {[%clk 0:00:09]}  Kc6 {[%clk 0:00:08]} 66. Kf2 {[%clk 0:00:09]}  Kd7 {[%clk 0:00:09]} 67. Kg1 {[%clk 0:00:10]}  Ke6 {[%clk 0:00:10]} 68. Kh2 {[%clk 0:00:11]}  Ke5 {[%clk 0:00:10]} 69. Kg1 {[%clk 0:00:12]}  Ke4 {[%clk 0:00:11]} 70. Kf2 {[%clk 0:00:13]}  f4 {[%clk 0:00:12]} 71. Kg1 {[%clk 0:00:14]}  f3 {[%clk 0:00:12]} 72. Kh1 {[%clk 0:00:14]}  Ke3 {[%clk 0:00:13]} 73. Kg1 {[%clk 0:00:14]}  f2+ {[%clk 0:00:13]} 74. Kh2 {[%clk 0:00:14]}  f1=Q {[%clk 0:00:13]} 0-1


[Site "https://www.chess.com"]

[Event "Titled Tuesday Blitz March 07 Late 2023"]
[White "Pesotskiy, Mikhail"]
[Black "Poeta, Caio Medeiros"]
[WhiteFideId "34164453"]
[BlackFideId "2142660"]
[WhiteElo "2131"]
[BlackElo "2191"]
[Result "0-1"]
[Round "04"]
[TimeControl "180+2"]
[Date "2023.03.07"]
[WhiteClock "0:00:59"]
[BlackClock "0:01:48"]

1. d4 {[%clk 0:01:42]}  d5 {[%clk 0:02:58]} 2. c4 {[%clk 0:01:42]}  c6 {[%clk 0:02:58]} 3. Nf3 {[%clk 0:01:43]}  Nf6 {[%clk 0:02:58]} 4. Nbd2 {[%clk 0:01:43]}  e6 {[%clk 0:02:58]} 5. e3 {[%clk 0:01:43]}  Bd6 {[%clk 0:02:57]} 6. b3 {[%clk 0:01:44]}  O-O {[%clk 0:02:57]} 7. Bb2 {[%clk 0:01:45]}  Nbd7 {[%clk 0:02:56]} 8. Bd3 {[%clk 0:01:45]}  b6 {[%clk 0:02:55]} 9. O-O {[%clk 0:01:45]}  Bb7 {[%clk 0:02:56]} 10. Ne5 {[%clk 0:01:46]}  dxc4 {[%clk 0:02:55]} 11. Ndxc4 {[%clk 0:01:45]}  Be7 {[%clk 0:02:51]} 12. Rc1 {[%clk 0:01:41]}  c5 {[%clk 0:02:43]} 13. Bb1 {[%clk 0:01:31]}  cxd4 {[%clk 0:02:43]} 14. Qxd4 {[%clk 0:01:32]}  Nxe5 {[%clk 0:02:42]} 15. Nxe5 {[%clk 0:01:33]}  Qxd4 {[%clk 0:02:41]} 16. Bxd4 {[%clk 0:01:34]}  Rac8 {[%clk 0:02:41]} 17. Bb2 {[%clk 0:01:31]}  Nd5 {[%clk 0:02:41]} 18. Rfd1 {[%clk 0:01:27]}  Bf6 {[%clk 0:02:40]} 19. Kf1 {[%clk 0:01:23]}  Rfd8 {[%clk 0:02:33]} 20. Ke1 {[%clk 0:01:18]}  Be7 {[%clk 0:02:29]} 21. f3 {[%clk 0:01:16]}  Nxe3 {[%clk 0:02:26]} 22. Rxd8+ {[%clk 0:01:15]}  Rxd8 {[%clk 0:02:25]} 23. Ke2 {[%clk 0:01:14]}  Nd5 {[%clk 0:02:23]} 24. Nc6 {[%clk 0:01:14]}  Nf4+ {[%clk 0:02:05]} 25. Ke3 {[%clk 0:01:10]}  Nxg2+ {[%clk 0:02:03]} 26. Ke2 {[%clk 0:01:04]}  Nf4+ {[%clk 0:02:01]} 27. Kf1 {[%clk 0:01:00]}  Bxc6 {[%clk 0:01:49]} 28. Rxc6 {[%clk 0:01:01]}  Rd1+ {[%clk 0:01:47]} 29. Kf2 {[%clk 0:01:01]}  Rxb1 {[%clk 0:01:47]} 30. Rc8+ {[%clk 0:00:59]}  Bf8 {[%clk 0:01:47]} 31. Ba3 {[%clk 0:01:00]}  Ng6 {[%clk 0:01:48]} 32. h4 {[%clk 0:00:59]}  h5 {[%clk 0:01:48]} 0-1


[Site "https://www.chess.com"]

[Event "Titled Tuesday Blitz March 07 Late 2023"]
[White "Womacka, Mathias"]
[Black "Eggleston, Thomas A"]
[WhiteFideId "4611390"]
[BlackFideId "412139"]
[WhiteElo "2377"]
[BlackElo "2155"]
[Result "1-0"]
[Round "04"]
[TimeControl "180+2"]
[Date "2023.03.07"]
[WhiteClock "0:00:24"]
[BlackClock "0:00:03"]

1. e4 {[%clk 0:03:00]}  e6 {[%clk 0:02:59]} 2. d4 {[%clk 0:02:59]}  d5 {[%clk 0:02:59]} 3. Nd2 {[%clk 0:03:00]}  c5 {[%clk 0:02:58]} 4. exd5 {[%clk 0:02:59]}  exd5 {[%clk 0:02:58]} 5. Ngf3 {[%clk 0:02:57]}  Nf6 {[%clk 0:02:58]} 6. Bb5+ {[%clk 0:02:56]}  Bd7 {[%clk 0:02:58]} 7. Bxd7+ {[%clk 0:02:56]}  Nbxd7 {[%clk 0:02:58]} 8. O-O {[%clk 0:02:56]}  Be7 {[%clk 0:02:58]} 9. dxc5 {[%clk 0:02:53]}  Nxc5 {[%clk 0:02:58]} 10. Re1 {[%clk 0:02:53]}  Ne6 {[%clk 0:02:47]} 11. Nf1 {[%clk 0:02:48]}  Ne4 {[%clk 0:02:30]} 12. c4 {[%clk 0:02:26]}  Nf6 {[%clk 0:02:16]} 13. Qa4+ {[%clk 0:02:21]}  Qd7 {[%clk 0:02:16]} 14. Qxd7+ {[%clk 0:02:20]}  Kxd7 {[%clk 0:02:16]} 15. Ne5+ {[%clk 0:02:19]}  Ke8 {[%clk 0:02:16]} 16. Ne3 {[%clk 0:02:06]}  dxc4 {[%clk 0:02:11]} 17. N3xc4 {[%clk 0:02:02]}  b5 {[%clk 0:01:45]} 18. Ne3 {[%clk 0:01:59]}  Bd6 {[%clk 0:01:41]} 19. Nf5 {[%clk 0:01:51]}  Bb4 {[%clk 0:01:19]} 20. Rd1 {[%clk 0:01:44]}  g6 {[%clk 0:01:07]} 21. Nh6 {[%clk 0:01:34]}  Rf8 {[%clk 0:00:53]} 22. Be3 {[%clk 0:01:29]}  Rd8 {[%clk 0:00:35]} 23. Rxd8+ {[%clk 0:01:15]}  Nxd8 {[%clk 0:00:35]} 24. Bxa7 {[%clk 0:01:12]}  Ke7 {[%clk 0:00:29]} 25. Bb6 {[%clk 0:00:57]}  Bd2 {[%clk 0:00:20]} 26. Bc5+ {[%clk 0:00:48]}  Ke8 {[%clk 0:00:17]} 27. Bxf8 {[%clk 0:00:46]}  Kxf8 {[%clk 0:00:17]} 28. Nhg4 {[%clk 0:00:45]}  Nxg4 {[%clk 0:00:17]} 29. Nxg4 {[%clk 0:00:44]}  Ne6 {[%clk 0:00:17]} 30. Rd1 {[%clk 0:00:44]}  Bg5 {[%clk 0:00:16]} 31. g3 {[%clk 0:00:41]}  h5 {[%clk 0:00:16]} 32. Ne5 {[%clk 0:00:40]}  Kg7 {[%clk 0:00:15]} 33. Rd7 {[%clk 0:00:39]}  Nd8 {[%clk 0:00:10]} 34. f4 {[%clk 0:00:37]}  Bf6 {[%clk 0:00:10]} 35. Kf2 {[%clk 0:00:36]}  g5 {[%clk 0:00:10]} 36. Ke3 {[%clk 0:00:36]}  gxf4+ {[%clk 0:00:09]} 37. gxf4 {[%clk 0:00:37]}  b4 {[%clk 0:00:05]} 38. Ke4 {[%clk 0:00:35]}  Bxe5 {[%clk 0:00:05]} 39. fxe5 {[%clk 0:00:34]}  Ne6 {[%clk 0:00:05]} 40. Ra7 {[%clk 0:00:28]}  Nc5+ {[%clk 0:00:04]} 41. Kf5 {[%clk 0:00:28]}  Nd3 {[%clk 0:00:04]} 42. e6 {[%clk 0:00:25]}  Nxb2 {[%clk 0:00:03]} 43. e7 {[%clk 0:00:24]} 1-0


[Site "https://www.chess.com"]

[Event "Titled Tuesday Blitz March 07 Late 2023"]
[White "Vovk, Orest"]
[Black "Good, Daniel"]
[WhiteFideId "14113490"]
[BlackFideId "1302388"]
[WhiteElo "2215"]
[BlackElo "2265"]
[Result "1-0"]
[Round "04"]
[TimeControl "180+2"]
[Date "2023.03.07"]
[WhiteClock "0:00:05"]
[BlackClock "0:00:01"]

1. h4 {[%clk 0:02:56]}  d5 {[%clk 0:02:59]} 2. h5 {[%clk 0:02:56]}  e5 {[%clk 0:02:59]} 3. h6 {[%clk 0:02:56]}  Nxh6 {[%clk 0:02:59]} 4. d4 {[%clk 0:02:57]}  Ng4 {[%clk 0:02:58]} 5. f3 {[%clk 0:02:56]}  Nh6 {[%clk 0:02:38]} 6. Bxh6 {[%clk 0:02:55]}  gxh6 {[%clk 0:02:38]} 7. dxe5 {[%clk 0:02:55]}  Qg5 {[%clk 0:02:37]} 8. Qxd5 {[%clk 0:02:17]}  Qg3+ {[%clk 0:02:12]} 9. Kd1 {[%clk 0:02:16]}  Nc6 {[%clk 0:02:12]} 10. Nd2 {[%clk 0:02:13]}  Be6 {[%clk 0:02:10]} 11. Qd3 {[%clk 0:01:41]}  Rd8 {[%clk 0:02:08]} 12. Qe3 {[%clk 0:01:36]}  Nxe5 {[%clk 0:01:50]} 13. Rh3 {[%clk 0:01:19]}  Qg7 {[%clk 0:00:34]} 14. Kc1 {[%clk 0:01:09]}  Bxh3 {[%clk 0:00:19]} 15. Nxh3 {[%clk 0:01:08]}  Bb4 {[%clk 0:00:18]} 16. c3 {[%clk 0:01:05]}  Be7 {[%clk 0:00:18]} 17. f4 {[%clk 0:00:56]}  Ng4 {[%clk 0:00:17]} 18. Qxa7 {[%clk 0:00:54]}  O-O {[%clk 0:00:15]} 19. e4 {[%clk 0:00:48]}  b6 {[%clk 0:00:10]} 20. Bc4 {[%clk 0:00:35]}  Bc5 {[%clk 0:00:09]} 21. Qxc7 {[%clk 0:00:17]}  Be3 {[%clk 0:00:08]} 22. Bd5 {[%clk 0:00:18]}  Kh8 {[%clk 0:00:05]} 23. Kc2 {[%clk 0:00:14]}  Bxd2 {[%clk 0:00:02]} 24. Kxd2 {[%clk 0:00:13]}  Nf6 {[%clk 0:00:03]} 25. Rg1 {[%clk 0:00:06]}  Nxe4+ {[%clk 0:00:03]} 26. Ke3 {[%clk 0:00:04]}  Rxd5 {[%clk 0:00:01]} 27. Kxe4 {[%clk 0:00:05]} 1-0


[Site "https://www.chess.com"]

[Event "Titled Tuesday Blitz March 07 Late 2023"]
[White "Koutlas, Nikolaos"]
[Black "Rose, Felix"]
[WhiteFideId "25827138"]
[BlackFideId "5105722"]
[WhiteElo "2215"]
[BlackElo "2039"]
[Result "1-0"]
[Round "04"]
[TimeControl "180+2"]
[Date "2023.03.07"]
[WhiteClock "0:01:33"]
[BlackClock "0:00:55"]

1. c4 {[%clk 0:03:00]}  e6 {[%clk 0:02:56]} 2. g3 {[%clk 0:03:00]}  d5 {[%clk 0:02:56]} 3. Bg2 {[%clk 0:03:00]}  Nf6 {[%clk 0:02:57]} 4. Nf3 {[%clk 0:03:00]}  dxc4 {[%clk 0:02:56]} 5. Qa4+ {[%clk 0:02:58]}  Nbd7 {[%clk 0:02:56]} 6. Qxc4 {[%clk 0:02:58]}  a6 {[%clk 0:02:57]} 7. a4 {[%clk 0:02:57]}  b5 {[%clk 0:02:53]} 8. Qc6 {[%clk 0:02:55]}  Rb8 {[%clk 0:02:52]} 9. O-O {[%clk 0:02:55]}  Bb7 {[%clk 0:02:50]} 10. Qc2 {[%clk 0:02:54]}  c5 {[%clk 0:02:50]} 11. axb5 {[%clk 0:02:53]}  axb5 {[%clk 0:02:50]} 12. d4 {[%clk 0:02:50]}  Qb6 {[%clk 0:02:41]} 13. Be3 {[%clk 0:02:05]}  Nd5 {[%clk 0:02:24]} 14. Bd2 {[%clk 0:02:01]}  cxd4 {[%clk 0:02:16]} 15. Ba5 {[%clk 0:02:01]}  Qc5 {[%clk 0:02:12]} 16. Qd2 {[%clk 0:01:57]}  e5 {[%clk 0:01:39]} 17. Rc1 {[%clk 0:01:54]}  Qd6 {[%clk 0:01:26]} 18. Na3 {[%clk 0:01:52]}  Ba8 {[%clk 0:01:17]} 19. Nxb5 {[%clk 0:01:45]}  Rxb5 {[%clk 0:01:08]} 20. Rc8+ {[%clk 0:01:43]}  Ke7 {[%clk 0:01:07]} 21. Bd8+ {[%clk 0:01:39]}  Ke6 {[%clk 0:00:59]} 22. Bh3+ {[%clk 0:01:35]}  f5 {[%clk 0:00:55]} 23. Ng5# {[%clk 0:01:33]} 1-0


[Site "https://www.chess.com"]

[Event "Titled Tuesday Blitz March 07 Late 2023"]
[White "Cheng, Xiao"]
[Black "Beukes, Dante M"]
[WhiteFideId "2022915"]
[BlackFideId "15200540"]
[WhiteElo "2443"]
[BlackElo "2199"]
[Result "0-1"]
[Round "04"]
[TimeControl "180+2"]
[Date "2023.03.07"]
[WhiteClock "0:00:26"]
[BlackClock "0:00:19"]

1. e4 {[%clk 0:02:52]}  c5 {[%clk 0:02:59]} 2. Nf3 {[%clk 0:02:49]}  d6 {[%clk 0:02:58]} 3. d4 {[%clk 0:02:50]}  cxd4 {[%clk 0:02:59]} 4. Nxd4 {[%clk 0:02:51]}  Nf6 {[%clk 0:02:59]} 5. Nc3 {[%clk 0:02:51]}  a6 {[%clk 0:03:00]} 6. Be3 {[%clk 0:02:46]}  e5 {[%clk 0:02:58]} 7. Nb3 {[%clk 0:02:46]}  Be6 {[%clk 0:02:58]} 8. f3 {[%clk 0:02:45]}  h5 {[%clk 0:02:58]} 9. Qd2 {[%clk 0:02:45]}  Nbd7 {[%clk 0:02:58]} 10. O-O-O {[%clk 0:02:45]}  Rc8 {[%clk 0:02:46]} 11. Nd5 {[%clk 0:02:44]}  Bxd5 {[%clk 0:02:42]} 12. exd5 {[%clk 0:02:44]}  b5 {[%clk 0:02:43]} 13. Na5 {[%clk 0:02:41]}  Nb6 {[%clk 0:02:38]} 14. Bxb6 {[%clk 0:02:31]}  Qxb6 {[%clk 0:02:39]} 15. Kb1 {[%clk 0:02:31]}  g6 {[%clk 0:02:35]} 16. Qb4 {[%clk 0:01:54]}  Qc5 {[%clk 0:01:56]} 17. Qxc5 {[%clk 0:01:42]}  Rxc5 {[%clk 0:01:57]} 18. c4 {[%clk 0:01:30]}  bxc4 {[%clk 0:01:50]} 19. Nxc4 {[%clk 0:01:29]}  Rxd5 {[%clk 0:01:48]} 20. Rc1 {[%clk 0:01:22]}  Bh6 {[%clk 0:01:33]} 21. Nb6 {[%clk 0:01:20]}  Bxc1 {[%clk 0:01:23]} 22. Nxd5 {[%clk 0:01:20]}  Nxd5 {[%clk 0:01:24]} 23. Kxc1 {[%clk 0:01:19]}  a5 {[%clk 0:01:19]} 24. Bb5+ {[%clk 0:01:18]}  Ke7 {[%clk 0:01:18]} 25. Rd1 {[%clk 0:01:17]}  Rc8+ {[%clk 0:01:18]} 26. Kd2 {[%clk 0:01:15]}  Nb4 {[%clk 0:01:14]} 27. Ba4 {[%clk 0:01:10]}  Nxa2 {[%clk 0:00:58]} 28. Bb3 {[%clk 0:01:06]}  Nb4 {[%clk 0:00:57]} 29. Ra1 {[%clk 0:01:06]}  Ra8 {[%clk 0:00:53]} 30. g4 {[%clk 0:01:01]}  hxg4 {[%clk 0:00:52]} 31. fxg4 {[%clk 0:01:01]}  d5 {[%clk 0:00:51]} 32. h4 {[%clk 0:01:00]}  Kd6 {[%clk 0:00:51]} 33. h5 {[%clk 0:01:00]}  gxh5 {[%clk 0:00:51]} 34. gxh5 {[%clk 0:01:01]}  Nc6 {[%clk 0:00:51]} 35. Rf1 {[%clk 0:00:59]}  Ke6 {[%clk 0:00:47]} 36. h6 {[%clk 0:00:57]}  Rh8 {[%clk 0:00:46]} 37. Rh1 {[%clk 0:00:54]}  Nd4 {[%clk 0:00:47]} 38. Bd1 {[%clk 0:00:50]}  f5 {[%clk 0:00:41]} 39. Bh5 {[%clk 0:00:48]}  Kf6 {[%clk 0:00:35]} 40. Bd1 {[%clk 0:00:40]}  Ne6 {[%clk 0:00:32]} 41. Bb3 {[%clk 0:00:39]}  Nf4 {[%clk 0:00:29]} 42. Bc2 {[%clk 0:00:31]}  Kg6 {[%clk 0:00:21]} 43. h7 {[%clk 0:00:30]}  e4 {[%clk 0:00:20]} 44. Ke3 {[%clk 0:00:29]}  Ne6 {[%clk 0:00:20]} 45. Bb3 {[%clk 0:00:28]}  f4+ {[%clk 0:00:20]} 46. Ke2 {[%clk 0:00:27]}  Nd4+ {[%clk 0:00:20]} 47. Kd2 {[%clk 0:00:28]}  Nxb3+ {[%clk 0:00:21]} 48. Kc3 {[%clk 0:00:28]}  Nc5 {[%clk 0:00:20]} 49. Kd4 {[%clk 0:00:28]}  Rxh7 {[%clk 0:00:19]} 50. Rg1+ {[%clk 0:00:27]}  Kf5 {[%clk 0:00:19]} 51. Kxc5 {[%clk 0:00:26]}  f3 {[%clk 0:00:19]} 52. Kxd5 {[%clk 0:00:27]}  f2 {[%clk 0:00:19]} 53. Rf1 {[%clk 0:00:27]}  e3 {[%clk 0:00:19]} 54. Kd4 {[%clk 0:00:26]}  Kf4 {[%clk 0:00:20]} 55. b4 {[%clk 0:00:26]}  axb4 {[%clk 0:00:19]} 56. Kd3 {[%clk 0:00:26]}  Kf3 {[%clk 0:00:19]} 57. Kc2 {[%clk 0:00:27]}  e2 {[%clk 0:00:18]} 58. Kd2 {[%clk 0:00:25]}  exf1=Q {[%clk 0:00:17]} 59. Kc2 {[%clk 0:00:25]}  Qe2+ {[%clk 0:00:17]} 60. Kb3 {[%clk 0:00:25]}  Qd3+ {[%clk 0:00:17]} 61. Ka4 {[%clk 0:00:25]}  Ra7+ {[%clk 0:00:17]} 62. Kxb4 {[%clk 0:00:25]}  Qa3+ {[%clk 0:00:17]} 63. Kc4 {[%clk 0:00:25]}  Rc7+ {[%clk 0:00:18]} 64. Kd4 {[%clk 0:00:25]}  Qc3+ {[%clk 0:00:18]} 65. Kd5 {[%clk 0:00:25]}  Rc5+ {[%clk 0:00:18]} 66. Kd6 {[%clk 0:00:25]}  Qe5+ {[%clk 0:00:18]} 67. Kd7 {[%clk 0:00:25]}  Rc7+ {[%clk 0:00:19]} 68. Kd8 {[%clk 0:00:26]}  Qe7# {[%clk 0:00:19]} 0-1


[Site "https://www.chess.com"]

[Event "Titled Tuesday Blitz March 07 Late 2023"]
[White "Kraus, Tomas"]
[Black "Hartikainen, Jarmo"]
[WhiteFideId "331708"]
[BlackFideId "503134"]
[WhiteElo "2389"]
[BlackElo "2204"]
[Result "1-0"]
[Round "04"]
[TimeControl "180+2"]
[Date "2023.03.07"]
[WhiteClock "0:00:08"]
[BlackClock "0:00:04"]

1. e4 {[%clk 0:03:00]}  c5 {[%clk 0:02:59]} 2. Nc3 {[%clk 0:03:00]}  Nc6 {[%clk 0:02:59]} 3. f4 {[%clk 0:03:00]}  e6 {[%clk 0:02:57]} 4. Nf3 {[%clk 0:03:01]}  d5 {[%clk 0:02:57]} 5. d3 {[%clk 0:03:01]}  Be7 {[%clk 0:02:55]} 6. g3 {[%clk 0:03:01]}  h5 {[%clk 0:02:54]} 7. h3 {[%clk 0:02:57]}  Nf6 {[%clk 0:02:32]} 8. e5 {[%clk 0:02:57]}  Ng8 {[%clk 0:02:29]} 9. Bg2 {[%clk 0:02:57]}  Nh6 {[%clk 0:02:28]} 10. O-O {[%clk 0:02:38]}  Nf5 {[%clk 0:02:26]} 11. Qe1 {[%clk 0:02:35]}  b6 {[%clk 0:02:10]} 12. g4 {[%clk 0:02:11]}  hxg4 {[%clk 0:02:00]} 13. hxg4 {[%clk 0:02:11]}  Nh4 {[%clk 0:01:53]} 14. Nxh4 {[%clk 0:02:11]}  Bxh4 {[%clk 0:01:52]} 15. Qd1 {[%clk 0:02:04]}  Bg3 {[%clk 0:01:45]} 16. Rf3 {[%clk 0:01:46]}  Qh4 {[%clk 0:01:29]} 17. Ne2 {[%clk 0:01:22]}  Nd4 {[%clk 0:01:06]} 18. Nxg3 {[%clk 0:01:14]}  Nxf3+ {[%clk 0:00:56]} 19. Qxf3 {[%clk 0:01:14]}  Bb7 {[%clk 0:00:51]} 20. Bd2 {[%clk 0:01:09]}  Rb8 {[%clk 0:00:50]} 21. Be1 {[%clk 0:00:52]}  d4 {[%clk 0:00:48]} 22. Ne4 {[%clk 0:00:52]}  Qh2+ {[%clk 0:00:47]} 23. Kf1 {[%clk 0:00:47]}  Ke7 {[%clk 0:00:32]} 24. Bg3 {[%clk 0:00:42]}  Qh7 {[%clk 0:00:29]} 25. Kf2 {[%clk 0:00:40]}  Bxe4 {[%clk 0:00:19]} 26. Qxe4 {[%clk 0:00:40]}  Qxe4 {[%clk 0:00:19]} 27. Bxe4 {[%clk 0:00:41]}  f6 {[%clk 0:00:15]} 28. exf6+ {[%clk 0:00:39]}  gxf6 {[%clk 0:00:15]} 29. g5 {[%clk 0:00:34]}  Rbf8 {[%clk 0:00:10]} 30. gxf6+ {[%clk 0:00:19]}  Kxf6 {[%clk 0:00:10]} 31. Rh1 {[%clk 0:00:18]}  Rxh1 {[%clk 0:00:09]} 32. Bxh1 {[%clk 0:00:19]}  Kf5 {[%clk 0:00:08]} 33. Be4+ {[%clk 0:00:19]}  Kg4 {[%clk 0:00:08]} 34. Bf3+ {[%clk 0:00:19]}  Kf5 {[%clk 0:00:08]} 35. a4 {[%clk 0:00:12]}  Rf7 {[%clk 0:00:06]} 36. Be4+ {[%clk 0:00:12]}  Kg4 {[%clk 0:00:07]} 37. Bf3+ {[%clk 0:00:12]}  Kf5 {[%clk 0:00:07]} 38. b3 {[%clk 0:00:13]}  Rg7 {[%clk 0:00:05]} 39. Be4+ {[%clk 0:00:12]}  Kg4 {[%clk 0:00:05]} 40. Bf3+ {[%clk 0:00:12]}  Kf5 {[%clk 0:00:05]} 41. Bh4 {[%clk 0:00:13]}  Rh7 {[%clk 0:00:05]} 42. Kg3 {[%clk 0:00:09]}  Rg7+ {[%clk 0:00:04]} 43. Bg5 {[%clk 0:00:07]}  Rg8 {[%clk 0:00:04]} 44. Bg4+ {[%clk 0:00:08]} 1-0


[Site "https://www.chess.com"]